bitfinex-derivatives/quotes_ETHF0:USTF0_20250101
["timestamp","ask_amount","ask_price","bid_price","bid_amount"]
[1735742110957,0.30039,3335.5,3335.3,3.2078]
[1735742111157,0.30038,3335.6,3335.3,3.5082]
[1735742111653,0.30037,3335.7,3335.3,3.2078]
[1735742111854,0.30035,3335.9,3335.6,0.30037]
[1735742112058,10.23280997,3336.1,3335.7,0.30036]
[1735742112059,0.30034,3336.0,3335.7,0.30036]
[1735742112258,3.2078,3336.1,3335.4,0.4399]
[1735742112463,0.30034,3336.0,3335.4,0.74029]
[1735742112653,3.2078,3336.1,3335.4,0.4399]
[1735742112857,3.95864,3336.1,3335.3,3.2078]
[1735742113054,3.2078,3336.1,3335.3,3.5082]
[1735742114362,0.30038,3335.6,3335.3,3.5082]
[1735742114556,3.2078,3336.1,3335.3,3.2078]
[1735742114957,0.30038,3335.6,3335.4,0.30039]
[1735742115356,0.30037,3335.7,3335.5,0.30038]
[1735742115559,3.2078,3336.1,3335.3,3.2078]
[1735742116157,0.73321,3336.4,3336.1,0.30033]
[1735742116358,0.4329,3336.4,3335.9,3.2078]
[1735742116753,0.30034,3336.0,3335.9,3.2078]
[1735742118060,3.6407,3336.4,3335.9,3.2078]
[1735742119260,0.30033,3336.2,3335.9,3.2078]
[1735742119463,3.6407,3336.4,3335.9,3.2078]
[1735742119760,0.30034,3336.0,3335.9,3.2078]
[1735742121954,3.6407,3336.4,3335.9,3.2078]
[1735742122166,0.30033,3336.2,3335.9,3.50814]
[1735742122465,3.6407,3336.4,3336.0,0.30034]
[1735742122861,0.30031,3336.3,3336.1,0.30033]
[1735742124065,3.2078,3336.4,3335.9,3.2078]
[1735742124264,0.30033,3336.2,3335.9,3.2078]
[1735742124566,0.3003,3336.5,3336.3,0.3003]
[1735742124863,3.2078,3336.8,3335.9,3.2078]
[1735742125072,0.4677,3337.0,3336.8,0.30026]
[1735742125073,0.76795,3337.0,3336.8,0.30026]
[1735742125264,0.30025,3337.1,3336.9,0.30025]
[1735742125564,0.30025,3337.1,3337.0,3.2078]
[1735742125769,0.30028,3336.7,3336.6,3.50808]
[1735742125968,0.30028,3336.7,3336.6,40.8]
[1735742126464,3.2078,3337.0,3336.2,3.2078]
[1735742126674,0.75077,3336.4,3335.7,3.50816]
[1735742126968,0.30036,3335.8,3335.7,3.50816]
[1735742127266,0.30036,3335.8,3335.7,3.2078]
[1735742127466,0.30036,3335.8,3335.7,3.50817]
[1735742127965,0.30034,3336.0,3335.7,3.2078]
[1735742128266,0.8757,3336.6,3335.7,3.2078]
[1735742128471,1.62643,3336.6,3335.7,3.2078]
[1735742128666,0.8757,3336.6,3335.7,3.2078]
[1735742128976,0.73039,3336.6,3335.7,3.2078]
[1735742129164,3.6716,3336.9,3336.1,3.2078]
[1735742129165,3.2078,3336.9,3336.1,3.2078]
[1735742129361,0.30025,3337.0,3336.9,0.30026]
[1735742129865,3.2078,3337.3,3336.6,0.8959]
[1735742130180,3.2078,3337.3,3336.6,3.83764222]
[1735742130362,3.2078,3337.3,3336.6,3.17817383]
[1735742130566,3.2078,3337.3,3336.6,0.8959]
[1735742130768,3.2078,3337.3,3336.6,3.17817383]
[1735742131067,0.30023,3337.2,3337.1,0.30024]
[1735742131267,3.2078,3337.3,3336.6,3.17817383]
[1735742131469,3.2078,3337.3,3337.2,0.30023]
[1735742131666,0.30022,3337.4,3337.2,0.30023]
[1735742131863,0.30016,3338.1,3337.8,0.30017]
[1735742132068,0.30012,3338.5,3338.2,0.30014]
[1735742132462,0.4475,3338.7,3338.3,0.30013]
[1735742132667,0.4475,3338.7,3338.0,0.4328]
[1735742132865,0.4475,3338.7,3337.9,44.0078]
[1735742132866,0.30016,3338.0,3337.9,40.8]
[1735742133575,0.4475,3338.7,3337.4,0.73301]
[1735742133576,0.3002,3337.6,3337.4,0.73301]
[1735742133874,0.30019,3337.7,3337.5,0.3002]
[1735742134077,0.4475,3337.9,3337.4,0.4328]
[1735742134268,0.4475,3337.9,3337.5,3.2078]
[1735742134467,3.2078,3338.2,3337.5,3.2078]
[1735742134970,3.2078,3338.2,3337.8,0.30017]
[1735742134971,0.30016,3338.1,3337.8,0.30017]
[1735742135170,3.2078,3338.2,3337.5,3.2078]
[1735742135171,3.50795,3338.2,3337.9,0.30016]
[1735742135373,3.2078,3338.2,3337.5,6.14529956]
[1735742135671,3.2078,3338.2,3338.1,0.30015]
[1735742135980,0.4407,3338.8,3338.1,3.2078]
[1735742136173,0.4407,3338.8,3338.2,0.4409]
[1735742136372,0.30013,3338.3,3338.2,0.4409]
[1735742136672,0.30013,3338.4,3338.2,0.74104]
[1735742136879,0.30012,3338.5,3338.2,0.74104]
[1735742137175,0.30012,3338.5,3338.3,0.30013]
[1735742137377,0.30012,3338.5,3338.2,0.74104]
[1735742137577,0.30011,3338.6,3338.3,0.30013]
[1735742137769,0.4407,3338.8,3338.4,0.30012]
[1735742137976,0.30008,3338.9,3338.2,0.4409]
[1735742138167,0.30008,3338.9,3338.6,0.3001]
[1735742138672,0.30008,3338.9,3338.5,3.2078]
[1735742138673,0.4438,3339.0,3338.5,3.2078]
[1735742138974,0.3001,3338.7,3338.5,3.50791]
[1735742139179,3.2078,3339.2,3338.5,3.2078]
[1735742139378,0.30008,3339.0,3338.5,3.2078]
[1735742139677,3.2078,3339.2,3338.6,41.1001]
[1735742139874,3.2078,3339.2,3338.5,3.2078]
[1735742139875,0.30011,3338.6,3338.5,3.2078]
[1735742140073,0.30013,3338.4,3338.2,0.74104]
[1735742140275,0.75016,3339.1,3338.2,0.4409]
[1735742140579,0.30012,3338.5,3338.2,0.74104]
[1735742140772,0.30012,3338.4,3338.2,0.74104]
[1735742140975,0.75016,3339.1,3338.2,0.4409]
[1735742141174,0.30012,3338.5,3338.2,0.4409]
[1735742141378,0.30012,3338.5,3338.3,0.30013]
[1735742141584,0.75016,3339.1,3338.2,0.4409]
[1735742141774,0.30015,3338.1,3338.0,3.2078]
[1735742141980,3.2078,3338.3,3337.5,6.44549956]
[1735742142274,0.4326,3338.2,3337.5,3.2078]
[1735742142480,0.30018,3337.8,3337.6,0.3002]
[1735742143379,0.4326,3338.2,3337.5,3.2078]
[1735742143582,0.4326,3338.2,3337.6,0.30019]
[1735742143881,0.4326,3338.2,3337.5,3.2078]
[1735742143882,0.4326,3338.2,3337.7,0.30019]
[1735742144083,0.30018,3337.8,3337.7,0.30019]
[1735742144283,0.75025,3338.8,3337.5,3.2078]
[1735742144284,3.2078,3338.7,3337.5,6.14529956]
[1735742144574,0.30015,3338.1,3338.0,3.2078]
[1735742145781,0.30013,3338.4,3338.2,0.30013]
[1735742145975,0.30011,3338.6,3338.4,0.30012]
[1735742146279,3.2078,3338.7,3338.3,40.8]
[1735742146482,0.30012,3338.4,3338.3,40.8]
[1735742146681,3.2078,3338.7,3338.3,40.8]
[1735742146883,0.30012,3338.4,3338.3,40.8]
[1735742147085,0.30009,3338.8,3338.3,43.73749956]
[1735742147284,3.2078,3339.3,3339.0,0.30006]
[1735742147482,0.30003,3339.5,3339.2,3.2078]
[1735742147680,0.30003,3339.5,3339.2,3.50785]
[1735742148080,0.30003,3339.5,3339.3,40.8]
[1735742148280,3.6384,3339.7,3339.1,0.4469]
[1735742148584,0.30005,3339.2,3339.1,0.4469]
[1735742148787,0.30005,3339.2,3339.1,41.2469]
[1735742149085,0.30005,3339.2,3339.1,40.8]
[1735742149291,3.2078,3339.3,3338.8,3.2078]
[1735742149482,0.30007,3339.1,3338.8,3.2078]
[1735742149677,3.2078,3339.3,3338.8,3.2078]
[1735742149881,3.2078,3339.3,3335.7,16.57033631]
[1735742149882,3.2078,3338.9,3338.4,1.273]
[1735742150182,3.2078,3339.3,3338.5,0.4665]
[1735742150483,3.2078,3339.3,3338.8,0.30009]
[1735742150484,0.30006,3339.1,3338.8,0.30009]
[1735742150680,3.6384,3339.7,3338.9,3.2078]
[1735742151073,0.30005,3339.3,3338.9,3.50787]
[1735742151575,0.30005,3339.3,3338.9,3.2078]
[1735742151783,0.30006,3339.2,3338.9,3.50788]
[1735742151978,0.30002,3339.6,3338.9,3.2078]
[1735742152181,0.30006,3339.2,3338.9,3.2078]
[1735742152485,0.30005,3339.3,3339.0,0.30007]
[1735742152688,0.30002,3339.6,3338.9,3.50787]
[1735742152982,0.30005,3339.3,3338.9,3.50787]
[1735742153188,0.30005,3339.3,3339.0,0.30007]
[1735742153383,0.30005,3339.3,3339.0,0.4282]
[1735742153778,0.30002,3339.6,3339.0,0.4282]
[1735742153981,0.30005,3339.3,3339.0,0.4282]
[1735742154281,0.30002,3339.6,3339.3,0.30004]
[1735742154583,3.50781,3339.7,3339.3,0.30004]
[1735742154982,3.50781,3339.7,3339.2,3.55164551]
[1735742154983,0.30003,3339.5,3339.2,3.85169551]
[1735742155188,3.2078,3339.7,3339.1,0.4623]
[1735742155374,0.30004,3339.4,3339.1,0.76236]
[1735742155577,0.4659,3339.6,3339.1,0.4623]
[1735742155877,0.30005,3339.3,3339.1,0.4623]
[1735742156277,0.4659,3339.6,3339.1,0.4623]
[1735742156584,0.4659,3339.6,3339.1,0.76236]
[1735742156886,0.30004,3339.4,3339.1,0.4623]
[1735742157581,0.4659,3339.6,3339.1,0.4623]
[1735742158483,0.30005,3339.2,3339.1,0.4623]
[1735742161186,0.4659,3339.6,3339.1,0.4623]
[1735742161386,0.30003,3339.4,3339.2,0.30005]
[1735742161576,0.4659,3339.6,3339.2,2.27864551]
[1735742161783,3.2078,3339.7,3339.2,2.27864551]
[1735742161984,3.2078,3339.7,3339.6,0.30002]
[1735742162586,3.2078,3339.7,3339.5,0.30002]
[1735742162787,0.30002,3339.6,3339.5,0.30002]
[1735742162984,3.2078,3339.7,3339.2,2.27864551]
[1735742163184,3.50781,3339.7,3339.6,0.30002]
[1735742163585,0.30002,3339.6,3339.5,0.30002]
[1735742163783,3.50781,3339.7,3339.6,0.30002]
[1735742163985,3.2078,3339.7,3339.6,0.30002]
[1735742164592,3.2078,3340.2,3339.5,2.27864551]
[1735742164794,0.9151,3340.5,3339.9,3.2078]
[1735742165087,0.29998,3340.1,3340.0,0.29998]
[1735742165386,0.29998,3340.1,3340.0,0.29736299]
[1735742165591,0.29998,3340.0,3339.9,3.2078]
[1735742166479,0.30002,3339.6,3339.5,3.2078]
[1735742166684,0.30003,3339.4,3339.3,1.263]
[1735742166998,0.30005,3339.2,3339.1,0.4623]
[1735742167187,0.30005,3339.3,3339.2,0.30005]
[1735742167691,1.1731,3339.8,3339.3,0.30004]
[1735742167692,0.30004,3339.4,3339.3,0.30004]
[1735742167990,0.30001,3339.7,3339.6,0.30002]
[1735742168292,0.4356,3340.0,3339.3,3.2078]
[1735742168491,0.30001,3339.7,3339.6,0.30001]
[1735742169185,0.4356,3340.0,3339.3,3.2078]
[1735742169388,0.30002,3339.6,3339.5,0.30002]
[1735742170294,0.4356,3340.0,3339.3,3.2078]
[1735742170295,0.30001,3339.7,3339.6,0.30001]
[1735742170792,0.29999,3339.9,3339.8,0.29999]
[1735742170987,3.2078,3340.1,3339.4,1.263]
[1735742171292,0.30002,3339.6,3339.5,0.30003]
[1735742171488,0.74989,3340.3,3339.4,1.263]
[1735742171794,0.30001,3339.8,3339.7,0.30001]
[1735742172488,0.74989,3340.3,3339.7,0.30001]
[1735742172489,0.29996,3340.3,3340.2,0.29996]
[1735742172680,0.29996,3340.3,3339.7,3.2078]
[1735742172681,0.29995,3340.4,3340.1,2.27864551]
[1735742172881,0.29995,3340.4,3340.2,40.8]
[1735742173087,0.29995,3340.4,3340.3,0.29995]
[1735742173404,0.29992,3340.7,3340.5,0.29993]
[1735742173588,5.82491944,3341.0,3340.8,0.29991]
[1735742173589,6.12480944,3341.0,3340.8,0.29991]
[1735742173795,5.82491944,3341.0,3340.9,0.2999]
[1735742174682,5.82491944,3341.0,3340.9,1.5629]
[1735742175090,0.29984,3341.6,3340.9,1.263]
[1735742175289,5.82491944,3341.8,3341.4,3.2078]
[1735742175595,5.82491944,3341.8,3341.7,0.29983]
[1735742175791,5.82491944,3341.8,3341.7,1.56283]
[1735742176085,5.32491944,3341.8,3341.7,1.56283]
[1735742176291,4.82491944,3341.8,3341.7,1.56283]
[1735742176492,0.29975,3342.6,3341.7,6.263]
[1735742176691,4.82491944,3342.9,3342.4,0.29976]
[1735742176892,4.82491944,3342.9,3342.3,5.48644551]
[1735742177093,0.29974,3342.7,3342.5,0.29976]
[1735742177295,0.29973,3342.8,3342.6,0.29974]
[1735742177495,4.82491944,3342.9,3342.6,2.27864551]
[1735742177692,3.50751,3343.0,3342.8,0.29973]
[1735742177884,0.29969,3343.3,3342.9,5.48644551]
[1735742178086,3.2078,3343.9,3343.2,2.27864551]
[1735742178287,0.29965,3343.7,3343.4,3.2078]
[1735742178489,0.29964,3343.8,3343.4,3.50747]
[1735742178691,3.2078,3343.9,3343.4,3.50747]
[1735742179293,0.29965,3343.7,3343.4,3.2078]
[1735742179494,3.2078,3343.9,3343.4,3.2078]
[1735742179495,0.29966,3343.6,3343.4,3.2078]
[1735742179794,0.29967,3343.5,3343.4,3.2078]
[1735742179991,0.29966,3343.6,3343.4,3.2078]
[1735742180196,0.29965,3343.7,3343.4,3.2078]
[1735742180397,3.2078,3343.9,3343.4,3.2078]
[1735742180697,0.29966,3343.6,3343.4,3.2078]
[1735742180897,0.29965,3343.7,3343.4,3.2078]
[1735742182389,3.2078,3343.9,3343.4,3.2078]
[1735742182592,0.29965,3343.7,3343.4,3.2078]
[1735742183207,3.2078,3343.9,3343.4,3.2078]
[1735742183498,0.29966,3343.6,3343.4,3.2078]
[1735742183890,0.29964,3343.8,3343.4,3.2078]
[1735742184288,3.2078,3343.9,3343.4,3.2078]
[1735742184601,0.29967,3343.5,3343.4,3.2078]
[1735742184989,0.29964,3343.8,3343.4,3.2078]
[1735742185392,3.2078,3343.9,3343.4,3.2078]
[1735742185595,3.2078,3343.9,3342.8,3.2078]
[1735742185804,0.29974,3342.7,3342.5,1.6968]
[1735742186091,0.29976,3342.5,3342.4,3.6622]
[1735742186299,0.29972,3342.9,3342.5,0.29976]
[1735742186590,0.4349,3343.1,3341.7,0.4634]
[1735742186591,3.2078,3342.6,3341.7,0.4634]
[1735742186796,0.4349,3343.1,3341.7,1.7254]
[1735742186797,0.2998,3342.0,3341.7,1.7254]
[1735742187001,0.29982,3341.9,3341.7,1.7254]
[1735742187193,0.29982,3341.8,3341.7,0.4634]
[1735742187393,3.2078,3342.1,3341.4,4.9242]
[1735742187695,0.29985,3341.5,3341.4,4.9242]
[1735742187900,3.2078,3342.1,3341.0,3.2078]
[1735742187901,0.74952,3342.0,3341.0,3.2078]
[1735742188198,0.74952,3342.0,3341.1,0.29988]
[1735742188199,0.29986,3341.4,3341.1,0.29988]
[1735742188394,0.74953,3341.9,3340.7,4.18896502]
[1735742188599,0.29986,3341.3,3340.7,1.262]
[1735742188900,0.29991,3340.9,3340.7,1.262]
[1735742189101,0.29991,3340.9,3340.6,3.6712]
[1735742189301,0.29991,3340.9,3340.7,0.29992]
[1735742189494,3.2078,3341.4,3340.6,4.9332]
[1735742189692,3.2078,3341.3,3340.6,1.262]
[1735742189995,3.2078,3341.3,3340.7,3.2078]
[1735742190504,0.29991,3340.8,3340.7,3.2078]
[1735742190895,0.2999,3340.9,3340.7,44.30772]
[1735742191097,3.2078,3341.3,3340.7,3.2078]
[1735742191299,0.29991,3340.8,3340.7,3.2078]
[1735742191498,0.29997,3340.2,3339.9,2.92696502]
[1735742191701,0.29998,3340.1,3340.0,40.8]
[1735742191998,3.2078,3340.8,3339.8,3.2078]
[1735742192205,3.2078,3340.8,3340.2,3.2078]
[1735742192405,3.2078,3340.9,3340.3,40.8]
[1735742192606,0.29994,3340.4,3340.3,40.8]
[1735742192806,0.29992,3340.7,3340.4,0.29994]
[1735742193006,0.29992,3340.7,3340.6,3.2078]
[1735742193302,3.2078,3341.3,3340.6,3.2078]
[1735742193507,0.4373,3341.5,3340.6,3.2078]
[1735742193902,0.29989,3341.0,3340.7,0.29991]
[1735742194301,0.29988,3341.2,3340.9,0.2999]
[1735742194606,0.29986,3341.4,3340.6,3.2078]
[1735742194810,0.4373,3341.5,3341.1,0.29988]
[1735742195009,0.29986,3341.3,3341.1,0.29988]
[1735742195501,0.29986,3341.4,3341.1,0.29988]
[1735742195708,3.2078,3341.7,3341.0,44.0078]
[1735742196007,0.29982,3341.9,3341.6,0.29983]
[1735742196211,0.439,3342.2,3341.6,3.2078]
[1735742196508,0.29983,3341.7,3341.6,3.2078]
[1735742196706,3.6427,3342.0,3341.2,3.2078]
[1735742196911,0.29983,3341.7,3341.3,0.29985]
[1735742197106,0.29983,3341.7,3341.4,0.29985]
[1735742197407,0.29986,3341.3,3341.2,3.2078]
[1735742197713,0.29986,3341.4,3341.2,3.2078]
[1735742197904,3.6427,3342.0,3341.2,3.2078]
[1735742198104,0.29986,3341.3,3341.2,3.2078]
[1735742199607,0.2999,3340.9,3340.8,3.2078]
[1735742200406,0.2999,3341.0,3340.8,3.2078]
[1735742200614,0.2999,3340.9,3340.8,3.2078]
[1735742202309,0.74965,3341.4,3340.4,44.0078]
[1735742202310,3.2078,3341.2,3340.4,44.0078]
[1735742202614,0.29994,3340.5,3340.4,3.2078]
[1735742202914,0.29996,3340.2,3340.0,3.50777]
[1735742203316,0.29995,3340.4,3340.1,0.29997]
[1735742203512,0.29993,3340.6,3340.4,0.29994]
[1735742203711,0.29992,3340.7,3340.5,0.29993]
[1735742203907,0.8927,3341.1,3340.5,3.2078]
[1735742204114,0.29987,3341.2,3340.9,0.29989]
[1735742204314,3.2078,3341.3,3340.5,3.2078]
[1735742204514,3.50767,3341.3,3341.1,0.29988]
[1735742205011,3.50767,3341.3,3340.7,2.92696502]
[1735742205012,3.2078,3341.3,3340.7,4.20696502]
[1735742205214,0.29984,3341.6,3341.2,3.2078]
[1735742205415,0.29984,3341.6,3341.4,0.29985]
[1735742206126,0.29982,3341.8,3341.5,0.29984]
[1735742206326,0.29983,3341.7,3341.5,0.29984]
[1735742207225,0.29984,3341.6,3341.4,0.29985]
[1735742207420,3.2078,3341.9,3341.2,3.2078]
[1735742207624,3.2078,3341.9,3341.5,0.29984]
[1735742207826,0.29983,3341.7,3341.5,0.29984]
[1735742208027,3.2078,3341.9,3341.7,0.29983]
[1735742208228,3.50761,3341.9,3341.7,0.29983]
[1735742208627,0.29982,3341.8,3341.7,0.29983]
[1735742208824,3.2078,3341.9,3341.2,3.2078]
[1735742209130,0.8563,3342.3,3341.7,3.2078]
[1735742209627,0.2998,3342.1,3341.9,0.29981]
[1735742209826,0.4243,3342.3,3341.7,3.2078]
[1735742210022,0.29978,3342.3,3342.1,0.29979]
[1735742210227,3.2078,3342.5,3342.1,0.29979]
[1735742210228,0.29978,3342.2,3342.1,0.29979]
[1735742210428,0.29978,3342.2,3341.7,3.2078]
[1735742210618,0.29978,3342.2,3342.0,0.2998]
[1735742210818,0.29976,3342.4,3342.0,0.2998]
[1735742211022,0.29978,3342.3,3342.1,0.29979]
[1735742211433,3.2078,3342.5,3341.7,3.2078]
[1735742211633,0.29978,3342.3,3342.1,0.29979]
[1735742212026,0.29977,3342.4,3342.2,0.29978]
[1735742212226,3.2078,3342.5,3341.7,3.2078]
[1735742212733,0.29977,3342.3,3342.1,0.29978]
[1735742213322,0.4473,3342.8,3342.1,3.2078]
[1735742213635,0.29972,3342.9,3342.7,0.29973]
[1735742213821,0.4544,3343.0,3342.6,3.2078]
[1735742214020,0.29974,3342.7,3342.6,3.2078]
[1735742214222,0.4544,3343.0,3342.2,44.4692]
[1735742214528,0.29975,3342.6,3342.4,0.29976]
[1735742214830,0.29976,3342.5,3342.3,0.46871266]
[1735742215032,0.29976,3342.5,3342.2,3.96898]
[1735742215226,0.4544,3343.0,3342.2,3.6692]
[1735742215431,0.29977,3342.4,3342.2,3.96898]
[1735742215731,0.29976,3342.5,3342.3,0.768494]
[1735742216036,0.29976,3342.5,3342.4,0.468724]
[1735742216933,0.74937,3342.6,3341.7,3.2078]
[1735742217139,0.29982,3341.9,3341.8,0.46881742]
[1735742217332,0.29982,3341.9,3341.7,3.50763]
[1735742217834,0.29982,3341.8,3341.7,3.2078]
[1735742218133,0.29982,3341.9,3341.7,3.2078]
[1735742218333,0.29982,3341.8,3341.7,3.2078]
[1735742219129,3.2078,3342.1,3341.3,0.29986]
[1735742219130,0.29985,3341.5,3341.3,0.29986]
[1735742219437,0.74953,3341.9,3341.2,0.29987]
[1735742219636,0.29986,3341.4,3341.2,0.29987]
[1735742219937,0.29982,3341.8,3341.2,0.29987]
[1735742220134,0.74953,3341.9,3340.9,0.8793]
[1735742220135,0.29986,3341.4,3341.3,0.29986]
[1735742220435,0.29986,3341.4,3341.2,0.29987]
[1735742220737,0.29986,3341.3,3341.2,0.29987]
[1735742221327,3.2078,3342.1,3341.2,3.95749]
[1735742221535,1.17362,3342.4,3341.3,0.46884253]
[1735742221731,0.29982,3341.8,3341.7,0.29983]
[1735742222032,0.29983,3341.7,3341.6,0.29984]
[1735742222229,0.29984,3341.6,3341.4,0.29985]
[1735742222733,0.29985,3341.4,3341.3,40.8]
[1735742222929,3.2078,3342.1,3341.3,40.8]
[1735742223135,0.29984,3341.6,3341.5,0.29984]
[1735742223548,3.2078,3342.1,3341.3,40.8]
[1735742223549,0.29985,3341.4,3341.3,40.8]
[1735742223734,0.29989,3341.1,3341.0,0.29989]
[1735742224046,3.2078,3341.6,3340.8,0.29991]
[1735742224237,0.2999,3340.9,3340.8,0.29991]
[1735742225834,0.29991,3340.8,3340.7,3.2078]
[1735742228539,0.29991,3340.8,3340.7,3.50772]
[1735742228741,0.29991,3340.8,3340.7,3.2078]
[1735742229538,0.29994,3340.5,3340.3,3.2078]
[1735742229742,3.2078,3340.7,3340.0,1.265]
[1735742230037,3.2078,3340.7,3340.1,40.8]
[1735742230242,3.2078,3340.7,3340.3,0.29995]
[1735742230443,3.2078,3341.1,3340.1,40.8]
[1735742230638,3.2078,3341.1,3340.4,3.2078]
[1735742230639,9.02069158,3341.1,3340.4,3.2078]
[1735742230942,0.29989,3341.0,3340.9,0.29989]
[1735742231540,9.02069158,3341.1,3340.7,0.29991]
[1735742231740,0.2999,3340.9,3340.7,0.29991]
[1735742231945,9.02069158,3341.1,3340.5,0.4566]
[1735742231946,0.29992,3340.7,3340.5,0.75653]
[1735742232136,0.29991,3340.8,3340.6,0.29992]
[1735742232536,3.2078,3341.1,3340.6,0.29993]
[1735742233243,0.29991,3340.9,3340.7,0.29991]
[1735742233545,3.2078,3341.1,3340.8,0.29991]
[1735742233740,3.2078,3341.1,3340.5,0.4566]
[1735742233945,5.81289158,3341.3,3340.6,0.4258]
[1735742233946,0.29988,3341.2,3340.6,0.4258]
[1735742234240,0.29989,3341.0,3340.7,0.29992]
[1735742234447,0.29989,3341.0,3340.9,0.2999]
[1735742235040,0.29989,3341.1,3341.0,0.29989]
[1735742235944,3.6653,3341.5,3340.6,0.4258]
[1735742236151,0.29993,3340.6,3340.5,0.4566]
[1735742236339,0.29995,3340.3,3340.1,2.57710715]
[1735742236538,0.74973,3341.0,3340.2,0.29996]
[1735742236737,1.20438,3340.8,3340.3,0.29995]
[1735742236943,0.29995,3340.3,3340.2,0.29996]
[1735742237538,0.29992,3340.7,3340.4,0.29994]
[1735742237738,0.29992,3340.7,3340.1,5.48494715]
[1735742237739,0.29993,3340.6,3340.5,0.29993]
[1735742239450,0.4546,3340.8,3340.1,5.48494715]
[1735742239750,0.29994,3340.5,3340.4,0.29994]
[1735742241247,0.29994,3340.6,3340.5,0.29993]
[1735742242263,0.4546,3340.8,3340.1,5.48494715]
[1735742242548,0.4546,3340.8,3340.1,3.2078]
[1735742242549,0.74982,3340.6,3340.1,3.2078]
[1735742242749,0.29996,3340.2,3340.1,3.50777]
[1735742242945,0.29996,3340.2,3340.1,3.2078]
[1735742243152,0.29998,3340.0,3339.9,41.2613]
[1735742243346,0.3,3339.8,3339.7,0.3]
[1735742243958,0.3,3339.8,3339.7,41.1]
[1735742244155,0.3,3339.9,3339.8,0.29999]
[1735742244454,0.74985,3340.5,3339.7,0.3]
[1735742244455,0.30001,3339.8,3339.7,0.3]
[1735742244656,0.30001,3339.7,3339.6,3.50781]
[1735742244852,0.30001,3339.7,3339.6,3.97690207]
[1735742245653,0.30001,3339.7,3339.6,3.2078]
[1735742245853,1.66265,3340.1,3339.4,0.76863]
[1735742246059,0.30003,3339.5,3339.4,0.76863]
[1735742246259,0.30003,3339.5,3339.4,0.30003]
[1735742246556,0.30003,3339.5,3339.4,0.76916832]
[1735742247261,0.30002,3339.6,3339.5,0.30001]
[1735742247656,1.033,3340.2,3339.2,5.48494715]
[1735742247854,0.30001,3339.7,3339.6,0.30001]
[1735742248048,1.033,3340.2,3339.3,1.21970026]
[1735742248248,0.3,3339.8,3339.7,0.3]
[1735742248652,1.033,3340.2,3339.2,5.48494715]
[1735742248860,0.30002,3339.6,3339.5,0.30002]
[1735742249060,0.30002,3339.7,3339.6,0.30001]
[1735742249260,2.27714715,3339.7,3339.3,0.46912897]
[1735742249567,0.30007,3339.0,3338.9,1.21007]
[1735742250062,0.30007,3339.0,3338.9,1.67926988]
[1735742250455,3.2078,3339.4,3338.9,1.37919988]
[1735742250658,0.30003,3339.5,3339.4,0.30003]
[1735742251971,0.9135,3339.6,3339.2,0.30005]
[1735742252161,0.30004,3339.3,3339.2,0.30005]
[1735742252362,0.30005,3339.2,3339.1,3.2078]
[1735742252564,0.30005,3339.3,3339.1,3.2078]
[1735742253257,0.9135,3339.6,3339.2,0.30005]
[1735742253458,0.30003,3339.5,3339.3,0.30004]
[1735742253667,0.9135,3339.6,3339.2,0.30005]
[1735742253668,1.21352,3339.6,3339.2,0.30005]
[1735742253854,1.21352,3339.6,3339.4,0.30003]
[1735742254059,0.9135,3339.6,3339.4,0.30003]
[1735742254259,0.30003,3339.5,3339.1,3.2078]
[1735742254555,0.30003,3339.5,3339.3,0.30004]
[1735742255172,0.30003,3339.5,3339.3,0.30003]
[1735742255663,0.30003,3339.5,3339.4,0.30003]
[1735742256064,1.21352,3339.6,3339.4,0.30003]
[1735742256467,6.51794715,3340.0,3339.2,5.48494715]
[1735742256468,3.2078,3340.0,3339.2,5.48494715]
[1735742256660,0.76337,3340.2,3340.0,0.29997]
[1735742256967,0.29997,3340.1,3340.0,0.29997]
[1735742257161,0.29998,3340.0,3339.9,0.29998]
[1735742257355,0.4634,3340.2,3339.6,3.6434]
[1735742257663,0.30001,3339.8,3339.7,0.30001]
[1735742257871,0.29998,3340.0,3339.8,0.29999]
[1735742258160,0.4634,3340.2,3339.6,3.2078]
[1735742258161,0.30001,3339.7,3339.6,3.2078]
[1735742258774,0.30001,3339.7,3339.6,3.50782]
[1735742259261,0.30001,3339.7,3339.6,3.2078]
[1735742259667,3.2078,3340.0,3339.6,3.2078]
[1735742259870,0.3,3339.8,3339.7,0.3]
[1735742260161,0.30001,3339.7,3339.6,3.2078]
[1735742260560,0.30001,3339.7,3339.6,3.50782]
[1735742262262,0.30001,3339.7,3339.6,3.2078]
[1735742263364,0.30001,3339.7,3339.6,3.50782]
[1735742263871,0.30001,3339.7,3339.6,3.2078]
[1735742264066,0.30004,3339.4,3339.2,0.30004]
[1735742264270,0.30005,3339.2,3339.1,3.2078]
[1735742265273,0.76015,3339.3,3339.1,3.50786]
[1735742265967,0.76015,3339.3,3339.1,3.2078]
[1735742265968,0.30005,3339.2,3339.1,3.2078]
[1735742266563,0.30005,3339.2,3339.1,3.67699403]
[1735742266969,0.30005,3339.2,3339.1,0.46919403]
[1735742267367,0.30007,3339.1,3338.9,0.76178]
[1735742267567,0.76015,3339.3,3339.1,0.30005]
[1735742267769,0.76015,3339.3,3339.1,0.30006]
[1735742267969,0.76015,3339.3,3339.2,0.46922529]
[1735742268171,2.74644715,3339.7,3339.2,0.46922529]
[1735742268374,0.4693,3339.7,3339.3,0.46922529]